Cogmind - Beta 13 X2 @@@ ROGUE MODE // 2024.01.17 @ 21:36:40 Player: IzRey Result: Destroyed by 1B-RW8(z) with Zionite Laser-S Performance ------------- Evolutions (1) 500 Regions Visited (5) 1000 Robots Destroyed (34) 170 Value Destroyed (945) 945 Prototype IDs (8) 160 Alien Tech Used (0) 0 Bonus (321) 321 TOTAL SCORE: 3096 Bonus ------- Met Imprinter 300 Was Imprinted 300 Destroyed Z-Imprinter 1000 Friendly Fire -1279 Cogmind --------- Core Integrity 0/400 Matter 8/300 Energy 92/100 System Corruption 0% Temperature Cool (20) Movement Walking (113) Location -7/Deep Caves Parts ------- > --- POWER (1) -------- Zionite Light DM Reactor > --- PROPULSION (3) --- Aluminum Leg Zionite Composite Leg I Zionite Composite Leg I > --- UTILITY (3) ------ Large Storage Unit Zionite Weapon Casing Zionite Weapon Casing > --- WEAPON (2) ------- (None) > --- INVENTORY (15) --- Improved Deuterium Engine Zionite Light DM Reactor Aluminum Leg Wheel Light Armor Plating Hardened Light Armor Plating Heavy Assault Rifle Makeshift Shrapnel Gun Guided Missile Launcher RU-N14's Throwing Claymores (10) RU-N14's Throwing Claymores (10) RU-N14's Throwing Claymores (10) RU-N14's Throwing Claymores (10) Peak State ------------ > --- POWER ------------ Zionite Light DM Reactor > --- PROPULSION ------- Aluminum Leg Zionite Composite Leg I Zionite Composite Leg I > --- UTILITY ---------- Large Storage Unit Zionite Weapon Casing Zionite Weapon Casing > --- WEAPON ----------- Guided Missile Launcher > --- INVENTORY -------- Improved Deuterium Engine Zionite Light DM Reactor Aluminum Leg Wheel Light Armor Plating Hardened Light Armor Plating Heavy Assault Rifle Makeshift Shrapnel Gun RU-N14's Throwing Claymores RU-N14's Throwing Claymores RU-N14's Throwing Claymores RU-N14's Throwing Claymores [Rating: 49] Favorites ----------- Power Ion Engine Engine Ion Engine Reactor Zionite Light DM Reactor Propulsion Aluminum Leg Treads Light Treads Leg Aluminum Leg Utility Improved Targeting Computer Device Long-range Tractor Beam Storage Medium Storage Unit Processor Improved Targeting Computer Protection Hardened Light Armor Plating Weapon Heavy Assault Rifle Energy Gun Beam Rifle Ballistic Gun Heavy Assault Rifle Launcher Guided Missile Launcher Special Weapon RU-N14's Throwing Claymores Build | -11 -10 -9 -9 -7 -7 ------- Run | Yrd Mat Mat Min Zio Dee Slots Evolved 2 | . . 2 . . . Power . | . . . . . . Propulsion 1 | . . 1 . . . Utility 1 | . . 1 . . . Weapon . | . . . . . . Parts Attached 49 | 1 . 12 1 16 19 Power 4 | . . . . 3 1 Engine 3 | . . . . 3 . Core . | . . . . . . Reactor 1 | . . . . . 1 Propulsion 14 | . . 5 . 5 4 Treads 6 | . . 3 . 3 . Leg 8 | . . 2 . 2 4 Wheel . | . . . . . . Hover . | . . . . . . Flight . | . . . . . . Utility 16 | 1 . 3 1 2 9 Device 3 | 1 . . . 1 1 Storage 2 | . . 1 . 1 . Processor 2 | . . 1 1 . . Hackware . | . . . . . . Protection 9 | . . 1 . . 8 Artifact . | . . . . . . Weapon 15 | . . 4 . 6 5 Energy Gun 1 | . . 1 . . . Energy Cannon . | . . . . . . Ballistic Gun 8 | . . 3 . 2 3 Ballistic Cannon . | . . . . . . Launcher 5 | . . . . 3 2 Special Weapon 1 | . . . . 1 . Impact Weapon . | . . . . . . Slashing Weapon . | . . . . . . Piercing Weapon . | . . . . . . Special Melee Weapon . | . . . . . . Unidentified Prototypes 6 | . . . . 2 4 Parts Lost 14 | . 1 3 . . 10 Power . | . . . . . . Propulsion 5 | . . 2 . . 3 Utility 6 | . 1 . . . 5 Weapon 3 | . . 1 . . 2 Highest Loss Streak 6 | . 1 1 . . 6 To Critical Strikes . | . . . . . . Average Slot Usage (%) 92 | . 100 91 100 93 87 Engine 10 | . 14 11 11 11 6 Treads 10 | . . 14 11 6 23 Leg 21 | . 28 17 22 26 7 Device 4 | . 14 . . 3 7 Storage 11 | . 14 11 11 11 11 Processor 12 | . . 7 11 18 5 Protection 3 | . . 7 11 . 8 Energy Gun 7 | . 28 13 11 3 . Ballistic Gun 5 | . . 8 11 5 3 Launcher 5 | . . . . 6 9 Naked Turns . | . . . . . . Heaviest Build 46 | 15 15 26 26 44 46 Greatest Support 76 | 20 20 40 23 76 76 Greatest Overweight (x) 2 | . . 1 1 1 2 Average Overweight (x) . | . . . . . . Largest Inventory Capacity 15 | 8 8 10 10 15 15 Average Capacity 11 | 8 8 9 10 11 15 Most Carried 15 | 6 7 10 10 15 15 Average Carried 10 | 6 6 9 10 10 13 Final Capacity 15 | 8 8 10 10 15 15 Final Carried 15 | 6 7 10 10 15 14 Class Distribution -------------------- 50% | Mutant 49% | Scavenger-Mutant Dominant Class ---------------- Mutant | -10/Materials Mutant | -9/Materials Scavenger-Mutant | -9/Mines Mutant | -7/Zion Scavenger-Mutant | -7/Deep Caves Resources | -11 -10 -9 -9 -7 -7 ----------- Run | Yrd Mat Mat Min Zio Dee Matter Collected 886 | 210 . 218 . 363 95 Remotely 370 | . . . . 331 39 Salvage Created 1328 | 102 80 632 . 299 215 Parts 62 | 2 2 31 . 15 12 Haulers Intercepted . | . . . . . . Recyclers Shooed 1 | . . 1 . . . Parts Field Recycled . | . . . . . . Retrieved Matter . | . . . . . . Parts Self-Destructed . | . . . . . . Prevented . | . . . . . . Kills | -11 -10 -9 -9 -7 -7 ------- Run | Yrd Mat Mat Min Zio Dee Combat Hostiles Destroyed 23 | . 2 12 . . 9 Guns 16 | . 2 12 . . 2 AOE 7 | . . . . . 7 Classes Destroyed 10 | 2 1 5 . 1 1 Worker 2 | . . 2 . . . Tunneler 2 | 1 . 1 . . . Recycler 2 | 1 . 1 . . . Watcher 1 | . . 1 . . . Swarmer 2 | . . 2 . . . Grunt 8 | . 2 6 . . . Duelist 1 | . . 1 . . . Sentry 3 | . . 3 . . . Z-Light 8 | . . . . . 8 Mutant 4 | . . . . 4 . Best Kill Streak 6 | 2 2 5 . . 6 Combat Bots Only 6 | . 2 4 . . 6 Max Kills in Single Turn 2 | 1 1 1 . 1 2 Gunslinging . | . . . . . . Exploded 2 | . . . . . 2 Melee . | . . . . . . Uniques/NPCs Destroyed 1 | . . . . . 1 Z-Imprinter (-7/Deep Caves) Combat | -11 -10 -9 -9 -7 -7 -------- Run | Yrd Mat Mat Min Zio Dee Hostile Shots Fired 185 | . 21 79 . . 85 Missed 47 | . 5 14 . . 28 Damage Taken 2820 | . 182 910 . . 1728 Core 451 | . 28 124 . . 299 Absorbed by Shields . | . . . . . . Redirected to Shielding 85 | . . . . . 85 Core Remaining (%) 94 | 100 88 . . . . Volleys Fired 122 | 5 11 56 . 31 19 Largest 2 | 2 2 2 . 2 2 Hottest 100 | 100 100 100 . 46 59 Shots Fired 231 | 10 22 109 . 62 28 Gun 217 | 10 22 109 . 62 14 Cannon . | . . . . . . Launcher 14 | . . . . . 14 Special . | . . . . . . Kinetic 116 | . . 40 . 62 14 Thermal 101 | 10 22 69 . . . Explosive 14 | . . . . . 14 Electromagnetic . | . . . . . . Robot Hit Streak 33 | 3 9 25 . 33 3 Robot Miss Streak 3 | 2 1 2 . 1 3 Penetration Max . | . . . . . . Secondary Targets 1 | . . 1 . . . Max Gunslinging Chain 1 | . . 1 . . . Shots Hit Robots 173 | 6 17 83 . 57 10 Core Hits 86 | 3 5 31 . 19 28 Critical Kills . | . . . . . . Critical Parts Destroyed . | . . . . . . Critical Strikes 13 | 1 4 8 . . . Burn 13 | 1 4 8 . . . Melee Attacks . | . . . . . . Impact . | . . . . . . Slashing . | . . . . . . Piercing . | . . . . . . Sneak Attacks . | . . . . . . Combat Hostiles . | . . . . . . Follow-up Attacks . | . . . . . . Damage Inflicted 3924 | 73 210 1138 . 879 1624 Guns 2391 | 73 210 1138 . 879 91 Cannons . | . . . . . . Explosions 1533 | . . . . . 1533 Melee . | . . . . . . Ramming . | . . . . . . Kinetic 1409 | . . 439 . 879 91 Thermal 982 | 73 210 699 . . . Explosive 1533 | . . . . . 1533 Electromagnetic . | . . . . . . Impact . | . . . . . . Slashing . | . . . . . . Piercing . | . . . . . . Highest Corruption . | . . . . . . Average Corruption . | . . . . . . Corruption Purged . | . . . . . . Corruption Blocked . | . . . . . . Overload Shots . | . . . . . . Overflow Damage 106 | . . . . . 106 Projectiles . | . . . . . . Explosions 106 | . . . . . 106 Melee . | . . . . . . Knockbacks . | . . . . . . Impact . | . . . . . . Kinetic . | . . . . . . Secondary . | . . . . . . Self-Inflicted Damage . | . . . . . . Shots . | . . . . . . Rammed . | . . . . . . Targets Rammed . | . . . . . . Kicked . | . . . . . . Crushed . | . . . . . . Highest Temperature 459 | 177 459 394 . . 357 Average Temperature 125 | 95 215 114 . . 114 Received Heat Transfer 864 | . 81 270 . . 513 Effects 3 | . 2 . . . 1 Interference 1 | . . . . . 1 Damage (major) 2 | . 2 . . . . Siege Activations . | . . . . . . Robots Corrupted . | . . . . . . Combat Hostiles . | . . . . . . Parts Fried . | . . . . . . Impact Corruptions . | . . . . . . Robots Melted . | . . . . . . Combat Hostiles . | . . . . . . Parts Melted 11 | 2 3 6 . . . Heat Transferred 3737 | 296 925 2516 . . . Parts Sabotaged . | . . . . . . Parts Stolen . | . . . . . . Parts Stripped . | . . . . . . Power Chain Reactions . | . . . . . . Missiles Intercepted . | . . . . . . Alert | -11 -10 -9 -9 -7 -7 ------- Run | Yrd Mat Mat Min Zio Dee Peak Influence 303 | 10 61 303 91 . . Initial 91 | . 6 21 91 . . Average 111 | 6 25 161 91 . . Maximum Alert Level 1 | . . 1 . . . Low Security (%) 83 | 100 100 70 100 . . Level 1 16 | . . 29 . . . Level 2 . | . . . . . . Level 3 . | . . . . . . Level 4 . | . . . . . . Level 5 . | . . . . . . High Security . | . . . . . . Max Security . | . . . . . . Squads Dispatched 1 | . 1 . . . . Investigation 1 | . 1 . . . . Extermination . | . . . . . . Reinforcement . | . . . . . . Assault . | . . . . . . Garrison . | . . . . . . Intercept . | . . . . . . Searches Triggered . | . . . . . . Construction Impeded . | . . . . . . Haulers Reinforced . | . . . . . . Active Scanning Responses . | . . . . . . Cargo Convoy Interrupts . | . . . . . . Stealth | -11 -10 -9 -9 -7 -7 --------- Run | Yrd Mat Mat Min Zio Dee Distress Signals 1 | . . 1 . . . Communications Jammed . | . . . . . . Distress Signals . | . . . . . . Times Spotted 37 | . 5 20 . . 12 Peak Tracking Total 5 | . 3 5 . . 5 Tactical Retreats 1 | . . 1 . . . Traps | -11 -10 -9 -9 -7 -7 ------- Run | Yrd Mat Mat Min Zio Dee Traps Triggered . | . . . . . . Indirectly . | . . . . . . Trap Hack Attempts . | . . . . . . Triggered . | . . . . . . Disarmed . | . . . . . . Reprogrammed . | . . . . . . Reused . | . . . . . . Traps Extracted . | . . . . . . Installed . | . . . . . . Triggered . | . . . . . . Machines | -11 -10 -9 -9 -7 -7 ---------- Run | Yrd Mat Mat Min Zio Dee Machines Disabled . | . . . . . . Max in Single Turn . | . . . . . . Machines Repaired . | . . . . . . Machines Dismantled . | . . . . . . Machines Sabotaged . | . . . . . . Overloaded Fab Kills . | . . . . . . Hacking | -11 -10 -9 -9 -7 -7 --------- Run | Yrd Mat Mat Min Zio Dee Machines Accessed 4 | . 1 3 . . . Terminals 4 | . 1 3 . . . Fabricators . | . . . . . . Repair Stations . | . . . . . . Recycling Units . | . . . . . . Scanalyzers . | . . . . . . Garrison Access . | . . . . . . Total Hacks 13 | . 4 9 . . . Successful 5 | . 2 3 . . . Failed 8 | . 2 6 . . . Catastrophic 1 | . . 1 . . . Database Lockouts . | . . . . . . Manual 11 | . 3 4 . 4 . Terminals 13 | . 4 9 . . . Fabricators . | . . . . . . Repair Stations . | . . . . . . Recycling Units . | . . . . . . Scanalyzers . | . . . . . . Garrison Access . | . . . . . . Terminal Hacks 4 | . 1 3 . . . Prototype ID Bank 1 | . 1 . . . . Branch Access Points 1 | . . 1 . . . Terminal Index 1 | . . 1 . . . Locate Traps 1 | . . 1 . . . Fabricator Hacks . | . . . . . . Repair Station Hacks . | . . . . . . Recycling Unit Hacks . | . . . . . . Scanalyzer . | . . . . . . Garrison Access Hacks . | . . . . . . Unauthorized Hacks 1 | . 1 . . . . Terminals 1 | . 1 . . . . Botnet 1 | . 1 . . . . Fabricators . | . . . . . . Repair Stations . | . . . . . . Recycling Units . | . . . . . . Scanalyzers . | . . . . . . Garrison Access . | . . . . . . Data Cores Recovered . | . . . . . . Used . | . . . . . . Hacking Detections 4 | . 1 3 . . . Full Trace Events 2 | . 1 1 . . . Feedback Events . | . . . . . . Feedback Blocked . | . . . . . . Robot Schematics Acquired 3 | . . . . 3 . Robots Built . | . . . . . . Authchips . | . . . . . . Time . | . . . . . . Total Robot Build Rating . | . . . . . . Part Schematics Acquired 14 | . . . . 14 . Parts Built . | . . . . . . Authchips . | . . . . . . Time . | . . . . . . Total Part Build Rating . | . . . . . . Parts Repaired . | . . . . . . Time . | . . . . . . Parts Recycled . | . . . . . . Recycled Matter . | . . . . . . Retrieved Matter . | . . . . . . Retrieved Components . | . . . . . . Parts Scanalyzed . | . . . . . . Part Schematics Acquired . | . . . . . . Parts Damaged . | . . . . . . Bothacking | -11 -10 -9 -9 -7 -7 ------------ Run | Yrd Mat Mat Min Zio Dee Used RIF Installer . | . . . . . . Robots Hacked . | . . . . . . Non-combat . | . . . . . . Combat . | . . . . . . Robot Hacks Applied . | . . . . . . Relay Couplers Released . | . . . . . . Fabnet Peak Effective % . | . . . . . . Robots Rewired . | . . . . . . Allies Hacked . | . . . . . . Hacks Repelled . | . . . . . . Allies | -11 -10 -9 -9 -7 -7 -------- Run | Yrd Mat Mat Min Zio Dee Total Allies 4 | . . . . 4 . Largest Group 4 | . . . . 4 . Highest-Rated Group 155 | . . . . 155 . Highest-Rated Ally 40 | . . . . 40 . Total Orders . | . . . . . . Ally Attacks . | . . . . . . Total Damage . | . . . . . . Kills . | . . . . . . Allies Corrupted . | . . . . . . Allies Melted . | . . . . . . Intel | -11 -10 -9 -9 -7 -7 ------- Run | Yrd Mat Mat Min Zio Dee Robot Analysis Total . | . . . . . . Derelict Logs Recovered . | . . . . . . Drone Launches . | . . . . . . Drone Recoveries . | . . . . . . Exploration | -11 -10 -9 -9 -7 -7 ------------- Run | Yrd Mat Mat Min Zio Dee Turns Passed 3660 | 35 272 618 212 1883 640 Spaces Moved 2175 | 16 153 240 111 1296 359 Core . | . . . . . . Treads 365 | . . 99 . 17 249 Legs 1810 | 16 153 141 111 1279 110 Wheels . | . . . . . . Hover . | . . . . . . Flight . | . . . . . . Fastest Speed 113 | 120 120 120 120 120 113 Average Speed 143 | 120 120 171 189 133 155 Slowest Speed 260 | 120 120 240 190 250 260 Overloaded Moves . | . . . . . . Propulsion Burnouts . | . . . . . . Robots Hopped . | . . . . . . Cave-ins Triggered . | . . . . . . Exploration Rate (%) 40 | 3 35 30 38 85 51 Regions Visited 5 Branch Regions 3 Pre-discovered Areas 2 | . . . 1 1 . Known Exits Taken 3 | . . 1 1 1 . Unknown Exits Taken 2 | 1 1 . . . . Scrap Searched 3 | . . . . 3 . Spaces Dug . | . . . . . . Terrain Destroyed 48 | . . . . . 48 Melee . | . . . . . . Projectile . | . . . . . . AOE 48 | . . . . . 48 Terrain Rammed . | . . . . . . Walls Destroyed . | . . . . . . Machines Disabled . | . . . . . . Actions | -11 -10 -9 -9 -7 -7 --------- Run | Yrd Mat Mat Min Zio Dee Total 2506 | 21 219 341 112 1399 414 Wait 92 | . 55 15 1 21 . Move 2170 | 15 152 239 110 1295 359 Hop . | . . . . . . Pick Up 29 | . 1 9 . 13 6 Fast Attach 19 | 1 . 5 . 7 6 Attach 18 | . . 3 . 5 10 Detach 10 | . . 1 . 5 4 Swap 12 | . . 4 1 4 3 Drop 34 | . . 9 . 18 7 Fire 122 | 5 11 56 . 31 19 Melee . | . . . . . . Ram . | . . . . . . Kick . | . . . . . . Crush . | . . . . . . Escape Stasis . | . . . . . . Rewire . | . . . . . . Trap . | . . . . . . Miscellaneous . | . . . . . . Route ------- -11/Scrapyard -10/Materials -9/Materials (discovered 2 exits: *Min x2) -9/Mines (discovered 2 exits: [*Mat] / *Zio) -7/Zion -7/Deep Caves History --------- Turn | Location | Event 14 | -11/Scrapyard | Discovered new exit (range 2) 36 | -11/Scrapyard | Entered Materials 296 | -10/Materials | Discovered new exit (range 11) 307 | -10/Materials | Build established: Mutant 308 | -10/Materials | Entered another Materials area 308 | -9/Materials | Evolved 2 slots: Propulsion x1, Utility x1 712 | -9/Materials | Identified exit to Mines 924 | -9/Materials | Build established: Scavenger-Mutant 926 | -9/Materials | Entered Mines 927 | -9/Mines | Learned location of Storage (-8) 1025 | -9/Mines | Discovered new exit (range 8) 1116 | -9/Mines | A Derelict revealed a hidden shortcut to a safe place 1137 | -9/Mines | Identified exit to Zion 1138 | -9/Mines | Entered Zion 1494 | -7/Zion | Acquired unknown access codes intercepted by a Zionite 1580 | -7/Zion | Imprinted 1582 | -7/Zion | Declared Zion's savior 1711 | -7/Zion | Opened final containment barrier to the Deep Caves 1729 | -7/Zion | Discovered new exit (range 5) 1731 | -7/Zion | Saw the warning signs outside the Deep Caves entrance 1733 | -7/Zion | Identified exit to Deep Caves 1796 | -7/Zion | Found Prototype Launcher 1796 | -7/Zion | Identified Gui. Missile Launcher 2093 | -7/Zion | Build established: Mutant 2212 | -7/Zion | Found Prototype Special Weapon 2212 | -7/Zion | Identified RU-N14's Throwing Claymores 2222 | -7/Zion | Found RU-N14's Throwing Claymores 2226 | -7/Zion | Found RU-N14's Throwing Claymores 2549 | -7/Zion | Found RU-N14's Throwing Claymores 2991 | -7/Zion | Murdered 3 allies 3021 | -7/Zion | Entered Deep Caves 3202 | -7/Deep Caves | Build established: Scavenger-Mutant 3325 | -7/Deep Caves | Attacked by Z-Imprinter 3341 | -7/Deep Caves | Core integrity fell below 50% 3355 | -7/Deep Caves | Destroyed Z-Imprinter 3391 | -7/Deep Caves | Lost 4 parts (2u2w) 3394 | -7/Deep Caves | Found Prototype Protection 3394 | -7/Deep Caves | Identified Zio. Weapon Casing 3421 | -7/Deep Caves | Found Zio. Weapon Casing 3525 | -7/Deep Caves | Lost 6 parts (3n3u) 3527 | -7/Deep Caves | Found Zio. Weapon Casing 3533 | -7/Deep Caves | Found Zio. Weapon Casing 3548 | -7/Deep Caves | Found Zio. Weapon Casing 3625 | -7/Deep Caves | Core integrity fell below 20% 3661 | -7/Deep Caves | Destroyed by 1B-RW8(z) with Zionite Laser-S Last Messages --------------- 03490_ Hrd. Light Armor Plating destroyed. 03492_ Phase Shifter destroyed. 03494_ Destroyed Prototype Hover Unit. 03494_ 7L-3B4(z) destroyed. 03494_ Zio. Light Carapace destroyed. 03496_ V4-QRB(z) destroyed. 03497_ The unstable cave ceiling collapses. 03517_ Overheating: System interference. 03517_ Gui. Missile Launcher temporarily disabled. 03523_ The unstable cave ceiling collapses. 03527_ Acquired Zio. Weapon Casing. 03539_ The unstable cave ceiling collapses. 03549_ Dropped Zio. Weapon Casing. 03550_ The unstable cave ceiling collapses. 03550_ Dropped Zio. Weapon Casing. 03555_ Acquired Prototype Leg. 03555_ Identified Zio. Composite Leg I. 03580_ Dropped Angular Momentum Engine. 03582_ Acquired Zio. Light DM Reactor. 03602_ The unstable cave ceiling collapses. Map ----- +----------------------------------------------------+ | | | | | | | | | | | | | | | | | | | | | | | | | | | | | | | ####????###??????????????????????????????????????? | | [!=##??? =#????###############???????????????????? | | #### [#?#### ##??????????????????? | | ## # # =### #????###???????????? | | ### #### ### ###### ##?????###### | | # ## ## ## # #???### # | | ##### | | | | z | | z # | | z @ # | | """"" """""" # | | """""""""""""" | | """""""""""""" | | """""""""""""" | | """"""""""" | | """""""""""""" | | """""?????"""" ! | | """""??????""" | | """"""??????"" # | | """"""??????" | | """""????? | | """""????? | | """""?????? | | """""??????? # | | """""??????? # | | """""??????"" | | """""?????? | | """""??????" # | | """"???????"" ## | | """""???????"" ## | | """"???????"" # | | """??????""" | | """?????""" | | """?????"" # | +----------------------------------------------------+ Best States ------------- Heat Dissipation 28 Energy Generation 27 Energy Capacity 300 Matter Stores 300 Matter Capacity 300 Sight Range 16 Terrain Scan Density 10 Armor Coverage 550 Weapon Shielding 100 Phase Shifting 5 Evasion (%) 55 Targeting Accuracy 6 Recoil Reduction 3 Item Schematics ----------------- Recalibrator | -7/Zion | Archive Remote Shield | -7/Zion | Archive Beamcaster | -7/Zion | Archive Hvy. Laser | -7/Zion | Archive Adv. Terrain Scan Processor | -7/Zion | Archive Adv. Plasma Cannon | -7/Zion | Archive Imp. Medium Treads | -7/Zion | Archive Remote Datajack | -7/Zion | Archive Chainsword | -7/Zion | Archive Imp. Proton Missile Launcher | -7/Zion | Archive Transmission Jammer | -7/Zion | Archive Hvy. Flak Cannon | -7/Zion | Archive Launcher Guidance Computer | -7/Zion | Archive Enh. Gauss Cannon | -7/Zion | Archive Robot Schematics ------------------ L-41 Fighter | -7/Zion | Archive B-48 Gladiator | -7/Zion | Archive T-07 Excavator | -7/Zion | Archive Fabricated ------------ Nothing Alien Tech Used ----------------- None Achievements -------------- None Challenges ------------ None Game ------ Seed ShadingTacticalSlayer Manual? 0 Play Time 00:38:01 Cumulative 566.5 hours Start 2024.01.17 @ 20:56:37 End 2024.01.17 @ 21:36:40 Sessions 1 Manual Loads 0 Difficulty Rogue Special Mode None Game No. 87 Rogue 70 Adventurer 17 Explorer 0 Win Type - Total 1 Types 1/0/0/0/0/0/0/0/0 Lore% 53 Gallery% 66 Achievement% 55 Wizard Run 0 Options --------- ASCII 0 Keyboard 1 Movement Vi Keybinds 0 Fullscreen 1 Font 18/SmallcapsGlow Map View 76x50 Zoom Use 0% Tactical HUD 1 Map Filters NONE Filters NONE Steam 1 RUN: e6248313-929c-41c5-9543-6200324dd688